bitfinex/quotes_SOLUSD_20241031
["timestamp","ask_amount","ask_price","bid_price","bid_amount"]
[1730416725287,8.94006646,169.59,169.5,0.1]
[1730416725493,15.43928436,169.6,169.55,8.94006646]
[1730416725700,0.6030179,169.6,169.56,8.94006646]
[1730416726300,0.6030179,169.6,169.56,14.83736646]
[1730416726602,20.42725546,169.6,169.55,20.6423]
[1730416726790,20.42725546,169.6,169.55,14.7444]
[1730416726987,13.92783756,169.59,169.55,14.7444]
[1730416727584,13.92783756,169.59,169.53,13.92783756]
[1730416727905,13.92783756,169.58,169.52,34.57393756]
[1730416728106,13.92783756,169.57,169.52,34.57393756]
[1730416728810,13.92783756,169.58,169.52,34.57393756]
[1730416730291,13.92783756,169.56,169.52,23.902374]
[1730416730596,13.92783756,169.56,169.52,23.776884]
[1730416730921,5.8965,169.59,169.5,5.8997]
[1730416730922,13.92783756,169.55,169.5,5.8997]
[1730416731401,13.92783756,169.55,169.5,19.82753756]
[1730416732110,19.82553756,169.56,169.5,19.82753756]
[1730416734501,19.82433756,169.59,169.54,13.92783756]
[1730416734810,5.8965,169.59,169.54,13.92783756]
[1730416735801,5.8965,169.59,169.55,13.92783756]
[1730416738504,13.92783756,169.58,169.52,19.82683756]
[1730416739395,13.92783756,169.57,169.52,13.92783756]
[1730416739712,13.92783756,169.58,169.52,13.92783756]
[1730416740015,13.92783756,169.58,169.53,13.92783756]
[1730416740718,19.82503756,169.58,169.53,13.92783756]
[1730416740911,19.82503756,169.58,169.52,19.95192756]
[1730416741118,13.92783756,169.57,169.52,19.95192756]
[1730416741301,13.92783756,169.57,169.51,28.67613756]
[1730416741500,13.92783756,169.56,169.51,34.57543756]
[1730416742408,5.8979,169.55,169.51,34.57543756]
[1730416743610,13.92783756,169.57,169.51,34.57543756]
[1730416743611,5.8976,169.56,169.51,34.57543756]
[1730416744912,13.92783756,169.56,169.51,34.57543756]
[1730416746017,13.92783756,169.56,169.51,28.67613756]
[1730416746231,5.8979,169.55,169.51,14.7483]
[1730416746401,13.92783756,169.54,169.49,13.92783756]
[1730416746597,13.92783756,169.53,169.48,6.15909822]
[1730416747019,13.92783756,169.53,169.48,20.08693578]
[1730416747208,13.92783756,169.54,169.48,20.08693578]
[1730416748213,5.8983,169.54,169.51,13.92783756]
[1730416748515,5.8983,169.54,169.51,8.91848422]
[1730416748716,25.8976,169.56,169.51,8.91848422]
[1730416748914,5.8976,169.56,169.51,8.91848422]
[1730416749309,5.8976,169.56,169.52,8.91848422]
[1730416749714,15.04098422,169.58,169.52,8.91848422]
[1730416749917,5.8972,169.57,169.53,8.91848422]
[1730416750535,8.91848422,169.56,169.51,20.6471]
[1730416750711,8.91848422,169.55,169.51,20.6471]
[1730416751107,8.91848422,169.54,169.49,8.91848422]
[1730416751412,8.91848422,169.52,169.48,20.90969822]
[1730416752120,8.91848422,169.52,169.48,6.15909822]
[1730416752327,14.81788422,169.51,169.48,6.15909822]
[1730416752711,5.8994,169.51,169.48,6.15909822]
[1730416753804,8.91848422,169.52,169.48,6.15909822]
[1730416754021,14.81748422,169.52,169.48,6.15909822]
[1730416754418,19.84068744,169.52,169.48,6.15909822]
[1730416765867,13.94168744,169.53,169.48,6.15909822]
[1730416767345,5.899,169.52,169.48,6.15909822]
[1730416769945,13.94168744,169.52,169.48,6.15909822]
[1730416770926,19.84118744,169.51,169.48,6.15909822]
[1730416771228,13.94168744,169.49,169.48,6.15909822]
[1730416771846,13.94168744,169.5,169.48,6.15909822]
[1730416772752,13.94168744,169.49,169.48,6.15909822]
[1730416772927,19.84168744,169.49,169.43,13.94168744]
[1730416773348,19.84168744,169.49,169.45,6.16250763]
[1730416774428,8.9257455,169.5,169.45,6.16250763]
[1730416775659,5.9004,169.48,169.45,6.16250763]
[1730416778550,5.9001,169.49,169.45,15.08825313]
[1730416779927,8.9257455,169.5,169.45,15.08825313]
[1730416780146,6.1079,169.52,169.46,8.9257455]
[1730416780147,5.8996,169.51,169.46,8.9257455]
[1730416780453,5.8996,169.51,169.47,8.9257455]
[1730416780824,5.8996,169.51,169.46,14.8265455]
[1730416781240,14.8247455,169.52,169.47,8.9257455]
[1730416781446,14.8236455,169.55,169.49,8.9257455]
[1730416782244,8.9257455,169.57,169.51,8.9257455]
[1730416782456,16.0326,169.58,169.51,8.9257455]
[1730416782457,14.8233455,169.56,169.51,8.9257455]
[1730416782751,5.8976,169.56,169.52,8.9257455]
[1730416782955,5.8976,169.56,169.52,14.8246455]
[1730416783153,8.9257455,169.57,169.52,14.8246455]
[1730416783154,5.8973,169.57,169.52,14.8246455]
[1730416783468,5.897,169.58,169.53,8.9257455]
[1730416783645,14.8222455,169.59,169.53,8.9257455]
[1730416784741,14.8222455,169.59,169.53,14.8241455]
[1730416785434,8.9257455,169.58,169.53,5.8984]
[1730416786553,5.8972,169.57,169.53,5.8984]
[1730416786761,8.9257455,169.56,169.51,8.9257455]
[1730416788059,14.8236455,169.56,169.51,14.8250455]
[1730416789059,8.9257455,169.57,169.51,14.8250455]
[1730416790642,14.8222455,169.59,169.54,8.9257455]
[1730416791251,0.6030179,169.6,169.57,8.9257455]
[1730416791442,6.4992179,169.6,169.57,8.9257455]
[1730416791641,6.4992179,169.6,169.56,8.9257455]
[1730416792051,0.6030179,169.6,169.57,8.9257455]
[1730416793055,6.4992179,169.6,169.56,8.9257455]
[1730416793943,6.4992179,169.6,169.55,14.9489355]
[1730416794138,15.4249634,169.6,169.55,8.9257455]
[1730416794360,8.9257455,169.59,169.54,20.644]
[1730416795547,14.8226455,169.59,169.54,20.644]
[1730416796964,5.8969,169.59,169.54,23.6714455]
[1730416797566,5.8969,169.59,169.55,8.9257455]
[1730416798964,5.8969,169.59,169.56,8.9257455]
[1730416799468,5.8969,169.59,169.55,8.9257455]
[1730416800749,5.8969,169.59,169.56,8.9257455]
[1730416801361,5.8969,169.59,169.55,8.9257455]
[1730416803248,6.4992179,169.6,169.56,8.9257455]
[1730416803954,6.4992179,169.6,169.56,14.8233455]
[1730416804358,6.4992179,169.6,169.56,8.9257455]
[1730416804668,6.4992179,169.6,169.57,8.9257455]
[1730416806554,6.4992179,169.6,169.56,8.9257455]
[1730416807055,6.4992179,169.6,169.55,29.6939355]
[1730416807458,8.9257455,169.59,169.54,8.9257455]
[1730416807652,8.9257455,169.58,169.53,6.15647702]
[1730416807856,8.9257455,169.57,169.53,6.15647702]
[1730416809155,8.9257455,169.54,169.53,6.15647702]
[1730416809677,14.8240455,169.54,169.49,6.15887675]
[1730416810878,5.8983,169.54,169.5,8.9257455]
[1730416811179,24.3065455,169.56,169.51,8.9257455]
[1730416811388,5.8978,169.56,169.52,8.9257455]
[1730416811868,5.8978,169.56,169.51,8.9257455]
[1730416813260,14.8235455,169.56,169.5,38.7276195]
[1730416814862,15.3886455,169.57,169.51,8.9257455]
[1730416815066,21.2859455,169.57,169.51,8.9257455]
[1730416815275,21.2859455,169.57,169.52,8.9257455]
[1730416815276,12.3602,169.57,169.52,8.9257455]
[1730416815981,21.2859455,169.57,169.51,14.8249455]
[1730416816282,8.9257455,169.59,169.53,8.9257455]
[1730416816477,0.6030179,169.6,169.56,8.9257455]
[1730416816667,6.4992179,169.6,169.57,8.9257455]
[1730416816861,0.6030179,169.6,169.57,8.9257455]
[1730416817391,0.6030179,169.6,169.58,8.9257455]
[1730416817681,0.6030179,169.6,169.59,8.9257455]
[1730416818187,0.6030179,169.6,169.59,14.8222455]
[1730416818358,0.6030179,169.6,169.58,14.7422]
[1730416818772,0.6030179,169.6,169.56,23.776884]
[1730416818980,20.42399447,169.6,169.56,23.776884]
[1730416819484,20.42399447,169.6,169.54,23.776884]
[1730416819485,13.92477657,169.59,169.54,23.776884]
[1730416819873,13.92477657,169.59,169.52,20.89708]
[1730416819874,13.92477657,169.58,169.52,13.92477657]
[1730416820200,13.92477657,169.58,169.51,15.9208]
[1730416820201,19.82237657,169.56,169.51,6.1580896]
[1730416820486,13.92477657,169.55,169.51,6.1580896]
[1730416821462,5.8983,169.54,169.51,6.1580896]
[1730416826376,5.8983,169.54,169.51,20.08286617]
[1730416826572,13.92477657,169.56,169.51,20.08286617]
[1730416826573,5.898,169.55,169.51,20.08286617]
[1730416827483,13.92477657,169.56,169.51,20.08286617]
[1730416827484,5.8977,169.56,169.53,13.92477657]
[1730416828497,19.82167657,169.58,169.52,13.92477657]
[1730416828676,13.92477657,169.57,169.52,13.92477657]
[1730416829777,5.8976,169.56,169.52,13.92477657]
[1730416833183,5.8976,169.56,169.51,25.98390809]
[1730416833509,5.8976,169.56,169.52,13.92477657]
[1730416834799,5.8976,169.56,169.51,25.98390809]
[1730416835171,19.82237657,169.56,169.51,25.98390809]
[1730416837190,13.92477657,169.57,169.51,25.98390809]
[1730416838466,5.8976,169.56,169.51,25.98390809]
[1730416838673,19.82237657,169.56,169.51,25.98390809]
[1730416839282,5.8976,169.56,169.51,25.98390809]
[1730416839691,19.82167657,169.58,169.52,13.92477657]
[1730416840075,13.92477657,169.57,169.52,13.92477657]
[1730416840390,13.92477657,169.58,169.53,23.902374]
[1730416840584,9.51932358,169.6,169.55,8.91630568]
[1730416840781,0.6030179,169.6,169.55,8.91630568]
[1730416841005,6.4992179,169.6,169.56,8.91630568]
[1730416841305,6.4992179,169.6,169.55,8.91630568]
[1730416841599,0.6030179,169.6,169.59,8.91630568]
[1730416841793,0.6030179,169.6,169.58,8.91630568]
[1730416842690,0.6030179,169.6,169.55,0.12549]
[1730416842691,0.6030179,169.6,169.56,23.65950568]
[1730416842897,0.6030179,169.6,169.56,14.7432]
[1730416843273,15.41572358,169.6,169.55,14.93969568]
[1730416844586,15.41572358,169.6,169.53,38.523184]
[1730416844587,13.92867171,169.59,169.54,13.92867171]
[1730416845276,0.6030179,169.6,169.56,13.92867171]
[1730416845495,20.42798961,169.6,169.55,13.92867171]
[1730416845875,6.4993179,169.6,169.56,13.92867171]
[1730416846577,6.4993179,169.6,169.55,13.92867171]
[1730416847093,6.4993179,169.6,169.54,6.02359]
[1730416847094,20.42798961,169.6,169.54,19.95226171]
[1730416847296,13.92867171,169.59,169.54,19.95226171]
[1730416847801,13.92867171,169.59,169.54,14.05416171]
[1730416847992,13.92867171,169.58,169.53,52.45185571]
[1730416848184,13.92867171,169.59,169.53,52.45185571]
[1730416848695,5.8969,169.58,169.53,52.45185571]
[1730416848997,5.8969,169.58,169.53,58.35045571]
[1730416849203,5.8969,169.58,169.54,13.92867171]
[1730416850177,5.8969,169.58,169.55,13.92867171]
[1730416850590,5.8965,169.59,169.55,13.92867171]
[1730416850991,5.8965,169.59,169.57,13.92867171]
[1730416851193,5.8965,169.59,169.56,13.92867171]
[1730416852202,5.8965,169.59,169.55,13.92867171]
[1730416853292,5.8965,169.59,169.56,13.92867171]
[1730416853493,0.6030179,169.6,169.56,13.92867171]
[1730416853691,0.6030179,169.6,169.57,13.92867171]
[1730416853897,0.6030179,169.6,169.56,13.92867171]
[1730416855604,0.6030179,169.6,169.56,19.82607171]
[1730416863531,6.4995179,169.6,169.55,19.82647171]
[1730416864510,6.4995179,169.6,169.55,8.914155]
[1730416864701,15.4136729,169.6,169.55,8.914155]
[1730416865216,8.914155,169.58,169.54,6.15676474]
[1730416865811,8.914155,169.59,169.54,6.15676474]
[1730416866020,8.914155,169.58,169.54,6.15676474]
[1730416866393,5.8972,169.57,169.54,6.15676474]
[1730416867809,5.897,169.58,169.54,6.15676474]
[1730416868489,8.914155,169.58,169.54,6.15676474]
[1730416871108,5.8972,169.57,169.54,6.15676474]
[1730416882319,15.3435179,169.6,169.55,8.914155]
[1730416882320,5.8968,169.59,169.55,8.914155]
[1730416882520,6.4993179,169.6,169.55,8.914155]
[1730416883727,6.4993179,169.6,169.55,14.812055]
[1730416886709,15.4134729,169.6,169.55,5.8979]
[1730416890529,9.5171729,169.6,169.55,5.8979]
[1730416890735,0.6030179,169.6,169.56,32.816529]
[1730416890932,0.6030179,169.6,169.57,8.914155]
[1730416891630,0.6030179,169.6,169.59,8.914155]
[1730416894430,0.6030179,169.6,169.59,14.936145]
[1730416894745,0.6030179,169.6,169.59,38.964009]
[1730416898741,0.6030179,169.6,169.59,38.713029]
[1730416898937,0.6030179,169.6,169.59,23.902374]
[1730416899244,0.6030179,169.6,169.57,23.656755]
[1730416900756,0.6030179,169.6,169.56,15.07201476]
[1730416900958,8.914155,169.59,169.56,6.15785976]
[1730416901251,15.4133729,169.6,169.56,6.15785976]
[1730416901722,6.4992179,169.6,169.56,6.15785976]
[1730416904038,15.4133729,169.6,169.56,6.15785976]
[1730416910148,15.311455,169.57,169.56,6.15785976]
[1730416910554,15.311455,169.57,169.5,20.6486]
[1730416910840,8.914155,169.54,169.5,20.6486]
[1730416911050,8.914155,169.54,169.51,6.16032938]
[1730416912135,8.914155,169.54,169.51,12.05962938]
[1730416914651,8.914155,169.55,169.51,12.05962938]
[1730416915930,14.812155,169.55,169.51,12.05962938]
[1730416916852,8.914155,169.54,169.51,6.16032938]
[1730416917441,8.914155,169.53,169.51,6.16032938]
[1730416917747,8.914155,169.54,169.51,6.16032938]
[1730416919054,14.812555,169.54,169.51,6.16032938]
[1730416922648,8.914155,169.52,169.51,6.16032938]
[1730416924540,8.914155,169.52,169.49,0.88446305]
[1730416924746,8.914155,169.5,169.49,0.88446305]
[1730416926553,14.813855,169.5,169.49,0.88446305]
[1730416931456,8.914155,169.55,169.49,9.79861805]
[1730416931671,14.811855,169.56,169.51,8.914155]
[1730416932039,15.311455,169.57,169.52,8.914155]
[1730416933576,21.208755,169.57,169.52,14.812955]
[1730416933853,21.208755,169.57,169.52,5.8988]
[1730416934241,8.914155,169.56,169.52,5.8988]
[1730416934967,8.914155,169.55,169.51,20.6472]
[1730416935555,6.3973,169.57,169.51,20.6472]
[1730416935556,15.311455,169.57,169.51,29.561355]
[1730416935744,21.208755,169.57,169.51,29.561355]
[1730416938666,8.914155,169.58,169.52,53.462829]
[1730416938844,17.2323179,169.6,169.55,8.914155]
[1730416939043,0.6030179,169.6,169.55,8.914155]
[1730416939665,9.5171729,169.6,169.55,8.914155]
[1730416939868,8.914155,169.59,169.54,8.914155]
[1730416940049,8.914155,169.58,169.53,20.77039]
[1730416940252,8.914155,169.58,169.53,29.684545]
[1730416940454,8.914155,169.58,169.53,9.039645]
[1730416940849,8.914155,169.58,169.52,32.691039]
[1730416941049,8.914155,169.55,169.5,6.16017662]
[1730416941774,8.914155,169.55,169.5,15.07433162]
[1730416942070,5.8983,169.54,169.5,15.07433162]
[1730416942653,14.812455,169.54,169.5,6.16017662]
[1730416943061,14.812455,169.54,169.5,6.13677919]
[1730416943271,8.914155,169.53,169.5,6.13677919]
[1730416943586,8.914155,169.52,169.5,6.13677919]
[1730416944169,5.8993,169.51,169.5,6.13677919]
[1730416946973,14.813455,169.51,169.5,6.13677919]
[1730416947159,14.813455,169.51,169.49,0.88446305]
[1730416947361,8.914155,169.5,169.49,0.88446305]
[1730416949264,14.813855,169.5,169.49,0.88446305]
[1730416954665,14.813855,169.5,169.43,20.6566]
[1730416954873,8.914155,169.47,169.43,20.6566]
[1730416955067,8.914155,169.46,169.42,0.12549]
[1730416955583,8.914155,169.44,169.4,35.8649]
[1730416955879,8.914155,169.43,169.4,14.7575]
[1730416956053,8.914155,169.42,169.37,23.674555]
[1730416956253,8.914155,169.42,169.37,29.578655]
[1730416956472,14.816755,169.42,169.37,29.578655]
[1730416956853,14.816755,169.42,169.37,14.7604]
[1730416957259,14.816755,169.42,169.37,29.578755]
[1730416957460,14.816755,169.42,169.37,20.6646]
[1730416957865,14.816755,169.42,169.37,29.578755]
[1730416958174,8.914155,169.45,169.39,8.914155]
[1730416958548,14.815555,169.45,169.39,14.817555]
[1730416960952,8.914155,169.44,169.39,14.817555]
[1730416961159,8.914155,169.43,169.39,5.9034]
[1730416961762,8.914155,169.44,169.39,14.817555]
[1730416962078,8.914155,169.46,169.41,8.914155]
[1730416962373,8.914155,169.48,169.42,8.914155]
[1730416962574,21.200455,169.49,169.43,8.914155]
[1730416962774,8.914155,169.47,169.42,8.914155]
[1730416963076,8.914155,169.47,169.43,5.9021]
[1730416965978,14.814855,169.47,169.42,29.572755]
[1730416966176,14.814855,169.47,169.42,20.6586]
[1730416971182,14.814855,169.47,169.42,29.572755]
[1730416973085,14.814555,169.48,169.42,29.572755]
[1730416975878,8.914155,169.45,169.39,8.914155]
[1730416976076,8.914155,169.41,169.38,14.7592]
[1730416976865,8.914155,169.41,169.38,20.663]
[1730416977272,8.914155,169.42,169.38,20.663]
[1730416978680,8.914155,169.41,169.38,20.663]
[1730416982390,8.914155,169.44,169.38,29.577155]
[1730416984590,8.914155,169.45,169.4,8.914155]
[1730416984886,8.914155,169.46,169.41,8.914155]
[1730416985867,8.914155,169.46,169.42,20.6586]
[1730416987776,8.914155,169.48,169.42,29.572755]
[1730416988097,8.914155,169.5,169.44,8.914155]
[1730416988386,8.914155,169.5,169.45,8.914155]
[1730416990479,8.914155,169.51,169.46,20.6537]
[1730416992765,8.914155,169.5,169.46,20.6537]
[1730416993095,8.914155,169.5,169.46,14.7527]
[1730416996290,8.914155,169.51,169.46,14.7527]
[1730416997497,8.914155,169.51,169.46,20.6537]
[1730416999100,15.071,169.54,169.48,29.565555]
[1730416999101,29.883655,169.54,169.48,29.565555]
[1730416999284,8.914155,169.51,169.48,20.6514]
[1730417000090,8.914155,169.52,169.48,14.751]
[1730417002683,8.914155,169.5,169.48,14.751]
[1730417005095,8.914155,169.5,169.45,0.12549]
[1730417005288,8.914155,169.5,169.46,23.776884]
[1730417006199,8.914155,169.5,169.47,5.9007]
[1730417007702,8.914155,169.5,169.46,5.9009]
[1730417009196,8.914155,169.51,169.46,5.9009]
[1730417009701,8.914155,169.51,169.46,20.6536]
[1730417011299,8.914155,169.51,169.45,9.039645]
[1730417011604,5.8997,169.5,169.45,14.940945]
[1730417013992,8.914155,169.5,169.44,8.914155]
[1730417014203,8.914155,169.49,169.44,23.776884]
[1730417014697,8.914155,169.48,169.44,23.776884]
[1730417016085,8.914155,169.48,169.44,29.678584]
[1730417017406,8.914155,169.45,169.38,8.914155]
[1730417017701,8.914155,169.44,169.39,0.12549]
[1730417017902,8.914155,169.44,169.39,8.914155]
[1730417018202,8.914155,169.45,169.39,14.817355]
[1730417018697,8.914155,169.45,169.4,0.12549]
[1730417019285,8.914155,169.45,169.4,23.902374]
[1730417020905,14.815555,169.45,169.4,29.805474]
[1730417023294,8.914155,169.44,169.39,29.576355]
[1730417023610,8.914155,169.43,169.39,14.7588]
[1730417023896,8.914155,169.42,169.39,14.7588]
[1730417029616,8.914155,169.46,169.4,32.816529]
[1730417029912,16.0119,169.49,169.44,8.914155]
[1730417029913,24.926055,169.49,169.44,8.914155]
[1730417030113,14.814255,169.49,169.44,8.914155]
[1730417030617,8.914155,169.48,169.43,8.914155]
[1730417031717,8.914155,169.48,169.43,29.571355]
[1730417032019,8.914155,169.47,169.43,20.6572]
[1730417032213,5.9004,169.48,169.41,6.02819]
[1730417032404,8.914155,169.44,169.41,6.02819]
[1730417033228,8.914155,169.45,169.41,6.02819]
[1730417033818,8.914155,169.46,169.41,14.942345]
[1730417034112,8.914155,169.46,169.41,6.02819]
[1730417034717,14.815255,169.46,169.41,6.02819]
[1730417035298,8.914155,169.45,169.41,6.02819]
[1730417036018,8.914155,169.46,169.41,6.02819]
[1730417037397,8.914155,169.45,169.4,53.351439]
[1730417037598,8.914155,169.42,169.37,20.6644]
[1730417038720,14.816655,169.42,169.37,20.6644]
[1730417039408,5.9025,169.42,169.37,29.578555]
[1730417043407,5.902,169.44,169.39,8.914155]
[1730417043606,15.172255,169.45,169.4,8.914155]
[1730417043811,21.073755,169.45,169.4,8.914155]
[1730417044208,21.073755,169.45,169.39,8.914155]
[1730417044909,21.073755,169.45,169.39,14.817455]
[1730417046828,14.816055,169.44,169.39,14.817455]
[1730417048107,14.816055,169.44,169.39,5.9033]
[1730417049541,14.816055,169.44,169.39,14.817455]
[1730417050225,8.914155,169.43,169.38,38.662074]
[1730417050433,8.914155,169.43,169.38,44.565774]
[1730417051412,8.914155,169.43,169.38,20.6634]
[1730417051616,5.9024,169.42,169.38,20.6634]
[1730417053414,14.816555,169.42,169.38,20.6634]
[1730417055913,8.914155,169.43,169.38,29.577555]
[1730417056923,14.815855,169.44,169.38,29.577555]
[1730417061332,14.814555,169.48,169.42,8.914155]
[1730417062529,14.814555,169.48,169.42,14.816555]
[1730417062829,14.814555,169.48,169.43,8.914155]
[1730417063015,8.914155,169.48,169.43,8.914155]
[1730417063222,8.914155,169.48,169.42,20.6586]
[1730417063223,5.9,169.49,169.44,8.914155]
[1730417063928,20.0,169.5,169.45,8.914155]
[1730417064129,8.914155,169.51,169.46,8.914155]
[1730417064336,14.813155,169.52,169.47,8.914155]
[1730417065335,6.2277,169.53,169.48,8.914155]
[1730417065741,5.8986,169.54,169.49,8.914155]
[1730417068017,14.812755,169.54,169.48,8.914155]
[1730417068839,8.914155,169.53,169.48,8.914155]
[1730417070537,14.812955,169.53,169.48,14.814355]
[1730417075822,8.914155,169.5,169.45,0.12549]
[1730417076027,8.914155,169.5,169.45,29.803774]
[1730417077048,14.813955,169.5,169.45,29.803774]
[1730417077730,14.813955,169.5,169.45,38.717929]
[1730417078734,8.914155,169.51,169.45,38.717929]
[1730417079141,8.914155,169.51,169.46,8.914155]
[1730417079828,5.8997,169.5,169.46,8.914155]
[1730417080342,5.8997,169.5,169.45,38.717929]
[1730417082542,5.8997,169.5,169.45,53.471529]
[1730417094252,8.914155,169.5,169.45,44.557374]
[1730417094755,8.914155,169.48,169.44,23.776884]
[1730417095338,8.914155,169.48,169.43,23.902374]
[1730417096258,5.9007,169.47,169.43,29.804474]
[1730417097337,14.814855,169.47,169.43,23.902374]
[1730417100338,14.814855,169.47,169.42,23.669855]
[1730417100538,14.814855,169.47,169.42,14.7557]
[1730417102640,5.9005,169.48,169.44,8.914155]
[1730417105361,5.8997,169.5,169.46,8.914155]
[1730417106043,8.914155,169.48,169.44,23.776884]
[1730417106345,8.914155,169.48,169.43,38.718529]
[1730417106755,8.914155,169.49,169.43,38.718529]
[1730417107557,5.9004,169.48,169.43,38.718529]
[1730417109665,8.914155,169.48,169.43,38.718529]
[1730417111669,14.814655,169.48,169.43,38.718529]
[1730417111855,5.9005,169.48,169.43,38.718529]
[1730417116166,5.9005,169.48,169.43,53.473829]
[1730417117549,8.914155,169.5,169.44,14.815755]
[1730417117872,8.914155,169.48,169.44,20.656]
[1730417119055,8.914155,169.48,169.43,29.804374]
[1730417119255,8.914155,169.49,169.43,38.718529]
[1730417119872,5.9004,169.48,169.43,38.718529]
[1730417120768,8.914155,169.48,169.43,29.804374]
[1730417121072,8.914155,169.49,169.43,38.718529]
[1730417121667,8.914155,169.49,169.43,53.473829]
[1730417122750,5.9004,169.48,169.43,53.473829]
[1730417124170,8.914155,169.5,169.43,53.473829]
[1730417124375,14.813855,169.5,169.43,53.473829]
[1730417124670,5.8997,169.5,169.44,8.914155]
[1730417125075,5.8997,169.5,169.46,23.902374]
[1730417128773,8.914155,169.52,169.46,23.902374]
[1730417128974,8.914155,169.53,169.47,8.914155]
[1730417129156,5.899,169.52,169.47,8.914155]
[1730417129358,14.813155,169.52,169.46,53.470129]
[1730417130077,8.914155,169.51,169.46,53.470129]
[1730417130379,8.914155,169.5,169.44,14.815655]
[1730417130579,8.914155,169.5,169.45,23.776884]
[1730417130763,8.914155,169.5,169.44,8.914155]
[1730417130959,8.914155,169.48,169.43,14.7548]
[1730417131979,8.914155,169.48,169.43,20.6569]
[1730417132361,5.9007,169.47,169.43,20.6569]
[1730417132571,5.9007,169.47,169.43,29.571055]
[1730417133359,5.9004,169.48,169.43,29.571055]
[1730417135362,5.9004,169.48,169.44,8.914155]
[1730417135863,5.4004,169.48,169.44,8.914155]
[1730417138888,5.4004,169.48,169.43,23.668955]
[1730417140068,5.4004,169.48,169.43,29.571055]
[1730417140391,5.4004,169.48,169.44,8.914155]
[1730417141689,8.914155,169.5,169.44,8.914155]
[1730417142397,8.914155,169.5,169.45,8.914155]
[1730417142571,8.914155,169.5,169.44,8.914155]
[1730417142895,5.9,169.49,169.44,8.914155]
[1730417144897,5.9,169.49,169.43,23.668955]
[1730417146506,5.9,169.49,169.43,29.571055]
[1730417147182,5.8997,169.5,169.46,8.914155]
[1730417148002,5.8997,169.5,169.45,8.914155]
[1730417151301,5.8997,169.5,169.45,14.815555]
[1730417154203,5.8994,169.51,169.46,29.693145]
[1730417155901,8.914155,169.5,169.46,20.77899]
[1730417157001,14.813855,169.5,169.46,20.77899]
[1730417158613,8.914155,169.51,169.46,20.77899]
[1730417159719,8.914155,169.5,169.46,14.87819]
[1730417161714,14.813955,169.5,169.46,14.87819]
[1730417163302,8.914155,169.51,169.46,14.87819]
[1730417164597,5.8997,169.5,169.46,14.87819]
[1730417168913,8.914155,169.5,169.46,14.87819]
[1730417169808,8.914155,169.49,169.43,23.669355]
[1730417170506,8.914155,169.48,169.43,23.669355]
[1730417171008,5.9007,169.47,169.43,23.669355]
[1730417171698,5.9005,169.48,169.44,8.914155]
[1730417172213,5.9005,169.48,169.45,8.914155]
[1730417172413,14.814255,169.49,169.44,8.914155]
[1730417173727,5.9001,169.49,169.45,8.914155]
[1730417174093,5.8998,169.5,169.46,8.914155]
[1730417175329,5.8998,169.5,169.45,14.815555]
[1730417177118,8.914155,169.5,169.45,5.9014]
[1730417178223,14.814055,169.5,169.45,5.9014]
[1730417181111,14.814055,169.5,169.43,14.7552]
[1730417181112,8.914155,169.49,169.43,29.571155]
[1730417182212,8.914155,169.48,169.43,29.571155]
[1730417183115,8.914155,169.49,169.43,29.571155]
[1730417183318,8.914155,169.49,169.44,8.914155]
[1730417184229,5.9004,169.48,169.44,8.914155]
[1730417188825,8.914155,169.5,169.44,8.914155]
[1730417191041,5.9,169.49,169.44,14.815855]
[1730417193337,14.814155,169.49,169.43,29.571355]
[1730417201221,14.814155,169.49,169.44,8.914155]
[1730417202441,14.814155,169.49,169.44,14.815855]
[1730417203750,5.9,169.49,169.44,14.815855]
[1730417207243,5.9,169.49,169.45,8.914155]
[1730417208224,5.9,169.49,169.46,8.914155]
[1730417209248,5.9,169.49,169.45,8.914155]
[1730417210941,5.9,169.49,169.43,20.657]
[1730417210942,5.9,169.49,169.44,8.914155]
[1730417212438,14.814155,169.49,169.44,8.914155]
[1730417212651,14.814155,169.49,169.43,29.571155]
[1730417215446,5.9,169.49,169.44,8.914155]
[1730417216050,5.9,169.49,169.43,14.7552]
[1730417216051,5.9,169.49,169.45,8.914155]